[Event "Fall GM-B Norm Invitational 2022"]
[Site "Charlotte"]
[Date "2022.11.19"]
[Round "3"]
[White "Ozenir, Ekin Baris"]
[Black "Cruz, Cristhian"]
[Result "1/2-1/2"]
[ECO "A13"]
[WhiteElo "2352"]
[BlackElo "2552"]
[Annotator "TA"]
[PlyCount "52"]
[EventDate "2022.11.18"]
[EventType "tourn"]
[EventCountry "USA"]
[SourceTitle "playchess.com"]
[Source "ChessBase"]
[SourceQuality "1"]
[TimeControl "5400+30"]

{[%evp 9,52,18,18,10,20,0,0,0,2,0,0,0,0,0,8,0,0,0,0,0,0,0,9,0,64,60,47,4,12,0,72,56,59,62,74,60,60,60,57,56,73,26,44,0,4]} 1. Nf3 {[%emt 0:00:02]} d5 {[%emt 0:01:38]} 2. c4 {[%emt 0:00:40]} e6 {[%emt 0:00:21]} 3. g3 {[%emt 0:00:36]} Nf6 {[%emt 0:00:48]} 4. Bg2 {[%emt 0:00:17]} dxc4 {[%emt 0:00:08]} 5. Qa4+ {[%emt 0:01:12]} Bd7 {[%emt 0:00:38]} 6. Qxc4 {[%emt 0:00:09] A13: English Opening: 1...e6.} c5 {[%emt 0:00:32]} 7. Ne5 {[%emt 0:01:03]} Qc8 {[%emt 0:00:24]} 8. O-O {[%emt 0:02:46]} Nc6 {[%emt 0:02:37] Inhibits d4.} 9. Nxd7 {[%emt 0:00:45]} Qxd7 {[%emt 0:00:09]} 10. Qa4 {[%emt 0:03:21]} Rc8 {[%emt 0:21:13]} 11. Nc3 {[%emt 0:02:04]} b6 {[%emt 0:13:14]} 12. d3 {[%emt 0:02:06]} Be7 {[%emt 0:01:03]} 13. Bd2 {[%emt 0:05:33]} O-O {[%emt 0:01:55]} 14. Rfc1 {[%emt 0:04:33]} Rfd8 {[%emt 0:02:58]} 15. Rab1 {[%emt 0:10:42] [#]} Ne8 $146 {[%emt 0:10:53]} ({Predecessor:} 15... c4 16. Ne4 Nd4 17. Nxf6+ Bxf6 18. Qxd7 Rxd7 19. Kf1 Rdc7 20. e3 Nb5 21. Rxc4 Rxc4 22. dxc4 Rxc4 {½-½ (58) Polschikov,A (2420)-Vetokhin,S (2324) Belgrade 2021}) 16. Ne4 {[%emt 0:12:38]} Nf6 {[%emt 0:08:59]} (16... f5 $11 17. Nc3 g6) 17. Nxf6+ $14 {[%emt 0:05:11]} Bxf6 {[%emt 0:00:03]} 18. Kf1 {[%emt 0:00:37]} (18. b4 $5 {[%cal Rb4c5]}) 18... a5 {[%emt 0:04:33]} 19. a3 {[%emt 0:04:22][%cal Ba2a3,Ba3b4][%mdl 32]} Be7 {[%emt 0:07:16] Against b4} (19... Ne7 $11 {keeps the balance.} 20. Qb3 Rb8) 20. b4 $16 {[%emt 0:09:44]} axb4 {[%emt 0:00:56]} 21. axb4 {[%emt 0:00:07]} h5 {[%emt 0:01:50]} 22. Be3 {[%emt 0:05:37][%cal Rb4c5]} Nd4 {[%emt 0:02:48]} (22... Nxb4 $2 23. Qxd7 Rxd7 24. Rxb4 $18) 23. Qxd7 {[%emt 0:01:04]} Rxd7 {[%emt 0:00:02]} 24. bxc5 {[%emt 0:00:48]} bxc5 {[%emt 0:00:01]} 25. Rc4 {[%emt 0:00:58]} (25. h4 $16) 25... Rcd8 {[%emt 0:00:23]} 26. Bxd4 {[%emt 0:03:20]} cxd4 {[%emt 0:00:30] Weighted Error Value: White=0.10 (very precise) /Black=0.14 (very precise)} 1/2-1/2

[Event "Fall GM-B Norm Invitational 2022"]
[Site "Charlotte"]
[Date "2022.11.19"]
[Round "3"]
[White "Ngo, Bach"]
[Black "Hilby, Craig"]
[Result "0-1"]
[ECO "D41"]
[WhiteElo "2275"]
[BlackElo "2411"]
[Annotator "TA"]
[PlyCount "75"]
[EventDate "2022.11.18"]
[EventType "tourn"]
[EventCountry "USA"]
[SourceTitle "playchess.com"]
[Source "ChessBase"]
[SourceQuality "1"]
[TimeControl "5400+30"]

{[%evp 12,75,32,32,37,32,32,32,44,27,20,14,18,-52,-50,-79,-64,-76,-80,-81,-73,-86,-58,-62,-61,-61,-41,-62,-61,-128,-110,-151,-132,-133,-131,-131,-128,-128,-129,-145,-158,-204,-204,-200,-191,-197,-198,-605,-620,-611,-600,-611,-599,-600,-573,-692,-689,-662,-625,-1241,-1065,-29968,-29967,-29992,-29993,-29993]} 1. d4 {[%emt 0:00:05]} d5 {[%emt 0:06:52]} 2. Nf3 {[%emt 0:00:10]} Nf6 {[%emt 0:00:23]} 3. c4 {[%emt 0:00:15]} e6 {[%emt 0:00:06]} 4. Nc3 {[%emt 0:00:06]} c5 {[%emt 0:00:08]} 5. cxd5 {[%emt 0:00:17]} exd5 {[%emt 0:00:17]} 6. Bg5 {[%emt 0:00:53]} Be6 {[%emt 0:00:05]} 7. e3 {[%emt 0:00:31]} c4 {[%emt 0:00:12] D32: Tarrasch Defence: Sidelines and lines without g3.} 8. Be2 {[%emt 0:02:42]} (8. e4 {is more complex.} dxe4 9. Ne5 Nc6 10. Nxc6 bxc6 11. Qa4) 8... Bb4 {[%emt 0:00:13]} 9. O-O {[%emt 0:00:32][%cal Oe3e4]} O-O {[%emt 0:00:07] White is slightly better.} 10. Qc2 {[%emt 0:09:37]} (10. Ne5 {simplifies} Nc6 11. Ng4 Be7 12. Bxf6 Bxf6 13. Nxf6+ Qxf6 14. b3) 10... Nbd7 {[%emt 0:01:45]} 11. Ne5 {[%emt 0:02:11] [#]} Qc8 $146 {[%emt 0:02:09]} ({Predecessor:} 11... Qa5 12. Nxd7 Nxd7 13. a3 Bxc3 14. bxc3 Nb6 15. a4 Bd7 16. Be7 Bxa4 17. Bxf8 Rxf8 {1-0 (38) Bluebaum,M (2647)-Vrolijk,L (2502) Chess.com INT 2020}) 12. f4 {[%emt 0:02:31]} (12. Nxd7 $11 Nxd7 13. a3 Bxc3 14. Qxc3) 12... Bxc3 $1 $15 {[%emt 0:04:53]} 13. bxc3 {[%emt 0:02:25]} Ne4 $1 {[%emt 0:05:42] Against f5} 14. Be7 {[%emt 0:04:41]} Re8 {[%emt 0:01:27]} 15. Ba3 {[%emt 0:00:40]} Bf5 {[%emt 0:18:25][%cal Oe4g3]} (15... f6 {simplifies} 16. Nxd7 Qxd7 17. Bf3 Bf5) 16. Qb2 {[%emt 0:13:07]} b5 {[%emt 0:01:08]} (16... f6 {simplifies} 17. Nxd7 Qxd7 18. Bd1 g6) 17. Bh5 {[%emt 0:11:38]} g6 {[%emt 0:05:04]} 18. Bf3 {[%emt 0:00:34]} Rb8 {[%emt 0:10:43][%cal Ob5b4,Ba8b8,Bb8b6,Bb6d6][%mdl 32]} (18... a6 {simplifies} 19. Bxe4 Bxe4 20. Nxd7 Qxd7 21. Bc5 Bd3) 19. Bxe4 {[%emt 0:16:26]} Bxe4 {[%emt 0:01:22]} 20. Qf2 {[%emt 0:00:18] [#]} ({White should play} 20. Nxd7 $15 Qxd7 21. Bc5) 20... a5 $1 $17 {[%emt 0:05:36]} 21. Bd6 {[%emt 0:01:29]} Rb6 {[%emt 0:01:24]} 22. Nxd7 {[%emt 0:00:17]} Rxd6 {[%emt 0:06:36]} ({Weaker is} 22... Qxd7 23. Bc5 Rbe6 24. h3 $15) 23. Nc5 {[%emt 0:00:36]} b4 {[%emt 0:00:55]} 24. Qe1 {[%emt 0:05:48]} Rb6 {[%emt 0:02:02] Black is more active.} 25. Rf2 {[%emt 0:00:44]} Rb5 {[%emt 0:05:59]} 26. Rb2 {[%emt 0:03:07] [#]} (26. Na4 $17 {keeps fighting.}) 26... Rxc5 $1 $19 {[%emt 0:00:47]} 27. dxc5 {[%emt 0:00:13]} Qxc5 {[%emt 0:00:07]} 28. cxb4 {[%emt 0:12:01]} axb4 {[%emt 0:00:02]} 29. Qxb4 {[%emt 0:00:27]} (29. Rxb4 d4 30. Rb2) 29... Qxe3+ {[%emt 0:00:14]} 30. Rf2 {[%emt 0:00:20]} c3 {[%emt 0:01:16] And now ...d4 would win.} 31. f5 {[%emt 0:01:48]} Bxf5 {[%emt 0:03:01]} 32. Qf4 {[%emt 0:02:53]} d4 {[%emt 0:02:29][%cal Bd5d4,Bd4d3,Bd3d2][%mdl 32] ...Qxf4 is the strong threat.} 33. g4 {[%emt 0:01:28]} Qxf4 {[%emt 0:00:44]} 34. Rxf4 {[%emt 0:00:07]} Be4 {[%emt 0:00:27] Strongly threatening ...d3.} 35. Kf2 {[%emt 0:00:19]} d3 {[%emt 0:00:58] aiming for ...d2.} 36. Ke3 {[%emt 0:01:13] [#] Inhibits d2.} d2 $1 {[%emt 0:00:09]} 37. Rf6 {[%emt 0:00:52]} (37. Rd1 Bc2+) 37... Bb1+ {[%emt 0:00:12]} 38. Kd4 {Black took control after the opening.   Weighted Error Value: White=0.56/Black=0.03 (flawless)} 0-1

[Event "Fall GM-B Norm Invitational 2022"]
[Site "Charlotte"]
[Date "2022.11.19"]
[Round "4"]
[White "Cruz, Cristhian"]
[Black "Hilby, Craig"]
[Result "1/2-1/2"]
[ECO "A13"]
[WhiteElo "2552"]
[BlackElo "2411"]
[Annotator "TA"]
[PlyCount "47"]
[EventDate "2022.11.18"]
[EventType "tourn"]
[EventCountry "USA"]
[SourceTitle "playchess.com"]
[Source "ChessBase"]
[SourceQuality "1"]
[TimeControl "5400+30"]

{[%evp 27,47,2,5,0,0,0,0,0,35,0,0,0,0,0,0,0,5,0,0,0,14,0]} 1. c4 {[%emt 0:01:37]} e6 {[%emt 0:00:04]} 2. Nf3 {[%emt 0:00:52]} d5 {[%emt 0:00:20]} 3. e3 {[%emt 0:00:12]} Nf6 {[%emt 0:01:16]} 4. b3 {[%emt 0:00:55]} c5 {[%emt 0:01:05]} 5. Bb2 {[%emt 0:01:12]} Nc6 {[%emt 0:00:07]} 6. cxd5 {[%emt 0:02:17]} exd5 {[%emt 0:00:32]} 7. Bb5 {[%emt 0:02:22]} Bd7 {[%emt 0:04:11]} 8. O-O {[%emt 0:00:45]} Bd6 {[%emt 0:00:25]} 9. d4 {[%emt 0:03:09]} cxd4 {[%emt 0:03:23]} 10. Nxd4 {[%emt 0:02:41]} O-O {[%emt 0:00:53]} 11. Nc3 {[%emt 0:04:44]} Re8 {[%emt 0:04:17]} 12. Be2 {[%emt 0:06:46]} Rc8 {[%emt 0:09:18]} 13. Nf3 {[%emt 0:10:58]} Bg4 {[%emt 0:03:42]} 14. Rc1 {[%emt 0:02:23]} Bb8 {[%emt 0:04:25]} 15. Nb5 {[%emt 0:04:36] D32: Tarrasch Defence: Sidelines and lines without g3.} Ne4 {[%emt 0:10:33] [#]} 16. g3 $146 {[%emt 0:04:31]} ({Predecessor (2):} 16. Nc3 Bxf3 17. Bxf3 Qh4 18. g3 Nxg3 19. fxg3 Bxg3 20. hxg3 Qxg3+ 21. Bg2 Qxe3+ 22. Rf2 Nd4 23. Kf1 {1-0 (30) Harvey,M (2440)-Pert,R (2416) Chess.com INT 2020}) 16... Qe7 {[%emt 0:04:32]} 17. Nbd4 {[%emt 0:04:57]} (17. Qxd5 $2 {loses.} Red8 18. Ba3 (18. Qc4 $2 Nb4 $19) 18... Rxd5 $19) 17... Qf6 {[%emt 0:11:40]} 18. Rc2 {[%emt 0:03:44] [#] And now Nxc6 would win.} Qh6 {[%emt 0:02:46] The position is equal.} 19. Nh4 {[%emt 0:06:44]} Nxd4 {[%emt 0:17:36]} 20. Bxd4 {[%emt 0:00:38]} Rxc2 {[%emt 0:00:15]} 21. Qxc2 {[%emt 0:00:20]} Rc8 {[%emt 0:00:32]} 22. Qb2 {[%emt 0:06:29]} Bxe2 {[%emt 0:01:14]} 23. Qxe2 {[%emt 0:00:06] Hoping for Qg4.} Qe6 {[%emt 0:00:32] Prevents Qg4.} 24. Ng2 {[%emt 0:12:38] An interesting draw.   Weighted Error Value: White=0.08 (flawless) /Black=0.03 (flawless)} 1/2-1/2

[Event "Fall GM-B Norm Invitational 2022"]
[Site "Charlotte"]
[Date "2022.11.19"]
[Round "4"]
[White "Beradze, Irakli"]
[Black "Williams, Justus"]
[Result "1/2-1/2"]
[ECO "A05"]
[WhiteElo "2494"]
[BlackElo "2395"]
[Annotator "TA"]
[PlyCount "102"]
[EventDate "2022.11.18"]
[EventType "tourn"]
[EventCountry "USA"]
[SourceTitle "playchess.com"]
[Source "ChessBase"]
[SourceQuality "1"]
[TimeControl "5400+30"]

{[%evp 9,102,22,15,15,18,16,16,-2,-16,-12,-22,-10,6,0,26,22,19,10,11,0,18,14,28,7,19,19,102,63,107,58,100,107,83,39,146,39,156,76,206,54,47,46,50,44,43,43,47,43,59,59,106,112,106,91,95,89,71,81,90,78,113,121,122,119,137,87,96,73,85,41,37,0,0,-22,-7,-7,-7,-14,-14,-25,0,0,0,0,0,0,0,0,0,0,0,-15,-15,-15,0]} 1. Nf3 {[%emt 0:03:21]} Nf6 {[%emt 0:05:39]} 2. g3 {[%emt 0:00:38]} g6 {[%emt 0:01:51]} 3. b3 {[%emt 0:00:15]} Bg7 {[%emt 0:00:08]} 4. Bb2 {[%emt 0:00:05]} d6 {[%emt 0:01:45]} 5. d4 {[%emt 0:02:04]} b5 {[%emt 0:06:52]} 6. Bg2 {[%emt 0:02:12][%cal Of3e5] A49: 1 d4 Nf6 2 Nf3 g6 3 g3: Anti-King's Indian systems.} Bb7 {[%emt 0:00:19]} 7. O-O {[%emt 0:01:12]} Nbd7 {[%emt 0:01:06]} 8. c4 {[%emt 0:02:27]} bxc4 {[%emt 0:02:37]} 9. bxc4 {[%emt 0:00:35]} Rb8 {[%emt 0:01:58]} 10. Qc2 {[%emt 0:01:25]} O-O {[%emt 0:04:02]} 11. Nbd2 {[%emt 0:00:18]} c5 {[%emt 0:09:07]} 12. d5 {[%emt 0:01:49] [#]} e6 $146 {[%emt 0:01:25]} ({Predecessor:} 12... Ba6 13. Rab1 Nb6 14. e4 Qe8 15. e5 Nfxd5 16. cxd5 Bxf1 17. Rxf1 Nxd5 18. Re1 Qb5 {1-0 (49) Sadhwani,R (2616)-Harika,D (2517) Chess.com INT 2022}) 13. e4 {[%emt 0:01:37]} exd5 {[%emt 0:01:30]} 14. exd5 {[%emt 0:00:01]} Ba6 {[%emt 0:00:59]} 15. Rab1 {[%emt 0:01:54]} Nb6 {[%emt 0:03:29] Prevents Qa4.} 16. Rfe1 {[%emt 0:07:51]} Qd7 {[%emt 0:01:14]} 17. Bf1 {[%emt 0:05:47]} Rfd8 {[%emt 0:04:43]} (17... Rfe8 $11 {remains equal.}) 18. Bc3 {[%emt 0:04:04]} (18. Ng5 {seems wilder.} Rf8 19. Nde4 Qd8 20. Nxf6+ Bxf6 21. Bxf6 Qxf6 22. Ne4) 18... Qa4 {[%emt 0:03:19]} 19. Qb3 {[%emt 0:00:58]} (19. Rb3 $16 Re8 20. Rxe8+ Qxe8 21. Ra3) 19... Qd7 {[%emt 0:03:34][%cal Ob6d5]} 20. Qa3 {[%emt 0:07:21]} Bc8 {[%emt 0:01:27]} 21. Rb3 {[%emt 0:02:40]} (21. Ng5 {feels hotter.} Re8 22. Rxe8+ Nxe8 23. Re1) 21... Qc7 {[%emt 0:02:05]} (21... Re8 $14) 22. Qc1 {[%emt 0:07:07]} ({White should try} 22. Qb2 $16 Nh5 23. Bxg7 Nxg7 24. Ne4) 22... Na4 {[%emt 0:03:31] [#]} (22... Re8 $14) 23. Ba1 {[%emt 0:02:34]} (23. Bxf6 $142 $1 Bxf6 24. Ne4) 23... Bd7 {[%emt 0:03:08]} (23... Rxb3 $16 24. axb3 Nb6) 24. h3 $2 {[%emt 0:11:29]} ({Don't take} 24. Re7 $6 Kf8 $16) ({White should play} 24. Ng5 $18 Bf5 25. f3) 24... Re8 $14 {[%emt 0:01:40] Inhibits Re7.} 25. Rbe3 {[%emt 0:09:53]} Rxe3 {[%emt 0:02:58]} 26. Rxe3 {[%emt 0:00:03]} Qd8 {[%emt 0:01:58]} 27. g4 {[%emt 0:02:33][%cal Bg3g4,Bg4g5][%mdl 32]} (27. Ng5 {feels hotter.} Bf5 28. Ra3 Rb4 29. Ngf3) 27... h6 {[%emt 0:01:44]} 28. Bd3 {[%emt 0:02:16]} h5 {[%emt 0:05:11]} 29. g5 {[%emt 0:00:54]} Nh7 {[%emt 0:00:28]} (29... Ne8 $14) 30. Bxg7 $16 {[%emt 0:02:01]} (30. h4 {keeps more tension.} Bxa1 31. Qxa1 Bg4 32. Ne4) 30... Kxg7 {[%emt 0:00:13]} 31. h4 {[%emt 0:00:17]} Kg8 {[%emt 0:01:46]} 32. Bc2 {[%emt 0:01:48]} Nb6 {[%emt 0:00:39]} 33. Qa3 {[%emt 0:00:45]} Rb7 {[%emt 0:00:27]} 34. Qc3 {[%emt 0:01:00]} Nc8 {[%emt 0:06:02]} 35. Ne4 {[%emt 0:02:32]} Bg4 {[%emt 0:04:25]} 36. Nfd2 {[%emt 0:01:45]} Re7 {[%emt 0:02:37]} 37. Nf6+ {[%emt 0:05:21]} (37. Nf1 $142) 37... Nxf6 {[%emt 0:00:08]} 38. Qxf6 {[%emt 0:00:18]} Qf8 {[%emt 0:01:24]} 39. Qf4 {[%emt 0:04:04] [#] And now Ne4 would win. White is much more active.} (39. Be4 {with more complications.} Re8 40. Ra3 Qe7 41. f3) 39... Rxe3 {[%emt 0:01:11]} 40. fxe3 {[%emt 0:00:13]} (40. Qxe3 {simplifies} Nb6 41. f3 Bf5 42. Bxf5 gxf5 43. Kg2) 40... Qg7 {[%emt 0:00:55] Hoping for ...Qc3.} 41. Ne4 {[%emt 0:02:24] Against Qc3} Qa1+ {[%emt 0:00:10]} 42. Qf1 {[%emt 0:00:07]} Qxf1+ {[%emt 0:02:29]} 43. Kxf1 $11 {[%emt 0:00:02][%mdl 4096] Endgame KBN-KBN} Kf8 {[%emt 0:00:26] ...Bf5 is the strong threat.} 44. Nf6 {[%emt 0:02:26]} Bh3+ {[%emt 0:00:05]} 45. Ke2 {[%emt 0:00:09] The position is equal.} Nb6 {[%emt 0:01:03]} 46. Bd3 {[%emt 0:00:06]} Bc8 {[%emt 0:01:41]} 47. Kd2 {[%emt 0:00:50]} Ke7 {[%emt 0:00:29]} 48. Ng8+ {[%emt 0:01:06]} Ke8 {[%emt 0:01:40]} (48... Kf8 $5 49. Nf6 $8 Ke7 $11) 49. Nf6+ {[%emt 0:00:02]} Kd8 {[%emt 0:00:08]} 50. a3 {[%emt 0:00:34]} Ba6 {[%emt 0:02:39]} 51. Kc3 {[%emt 0:00:12]} Na4+ {[%emt 0:01:12] Weighted Error Value: White=0.23 (precise) /Black=0.20 (precise)} 1/2-1/2

[Event "Fall GM-B Norm Invitational 2022"]
[Site "Charlotte"]
[Date "2022.11.19"]
[Round "4"]
[White "Paragua, Mark"]
[Black "Woodward, Andy"]
[Result "0-1"]
[ECO "A05"]
[WhiteElo "2466"]
[BlackElo "2447"]
[Annotator "TA"]
[PlyCount "72"]
[EventDate "2022.11.18"]
[EventType "tourn"]
[EventCountry "USA"]
[SourceTitle "playchess.com"]
[Source "ChessBase"]
[SourceQuality "1"]
[TimeControl "5400+30"]

{[%evp 15,72,-33,-31,-28,-24,-39,-32,-48,-22,-35,-36,-31,-25,-63,-35,-40,-31,-79,-14,-245,-251,-242,-238,-336,-247,-260,-82,-170,-118,-115,-108,-130,-75,-130,-92,-117,-110,-118,-127,-134,-137,-147,-110,-172,-167,-326,-315,-267,-250,-334,-333,-528,-525,-29992,-29993,-29993,-1234,-29994,-339]} 1. Nf3 {[%emt 0:00:06]} Nf6 {[%emt 0:00:38]} 2. g3 {[%emt 0:00:06]} g6 {[%emt 0:00:08]} 3. b3 {[%emt 0:00:21]} Bg7 {[%emt 0:00:14]} 4. Bb2 {[%emt 0:00:06]} O-O {[%emt 0:00:12]} 5. Bg2 {[%emt 0:00:09]} d5 {[%emt 0:00:34]} 6. c4 {[%emt 0:01:07]} c5 {[%emt 0:00:23]} 7. O-O {[%emt 0:01:13]} d4 {[%emt 0:00:31]} 8. e3 {[%emt 0:01:12]} Nc6 {[%emt 0:00:11]} 9. exd4 {[%emt 0:03:25] A05: Réti Opening: 1 Nf3 Nf6.} cxd4 {[%emt 0:00:15]} 10. Re1 {[%emt 0:00:39] Inhibits e5.} Re8 {[%emt 0:04:13]} 11. d3 {[%emt 0:02:20] Black is slightly better.} e5 {[%emt 0:00:16]} 12. Na3 {[%emt 0:01:13]} Bf5 {[%emt 0:05:40]} 13. Nc2 {[%emt 0:01:05]} a5 {[%emt 0:02:22] [#]} 14. Qd2 $146 {[%emt 0:03:41]} ({Predecessor:} 14. a3 Qd7 15. b4 axb4 16. axb4 Rxa1 17. Bxa1 Qc7 18. b5 Nd8 19. Nb4 h6 20. Nh4 {½-½ (61) Harika,D (2492)-Danielian,E (2417) Chess.com INT 2019}) 14... Qd7 {[%emt 0:04:01]} 15. a3 {[%emt 0:03:01]} Bh3 {[%emt 0:08:17]} (15... Rad8 {simplifies} 16. b4 e4 17. Nfxd4 exd3 18. Bxc6 Rxe1+ 19. Rxe1 bxc6 20. Nxf5 gxf5 21. Bxf6 Bxf6 22. Ne3 axb4 23. axb4 f4) 16. b4 {[%emt 0:08:24]} (16. Bh1 $1 $15) 16... e4 {[%emt 0:07:30]} (16... Bxg2 $17 17. Kxg2 Nh5) 17. Nfxd4 {[%emt 0:08:59] [#]} (17. dxe4 $1 $11 Nxe4 18. Qd3 Bxg2 19. Kxg2 Qh3+ 20. Kg1) 17... Bxg2 $1 $19 {[%emt 0:00:47]} 18. Kxg2 {[%emt 0:00:24]} Ne5 {[%emt 0:00:05]} 19. Ne3 {[%emt 0:25:35]} (19. dxe4 $142 Nxc4 20. Qc3 Nxb2 21. Qxb2 Nxe4 22. h4) 19... Nxd3 {[%emt 0:00:55]} 20. Red1 {[%emt 0:00:19]} h5 $2 {[%emt 0:09:29]} (20... Ng4 $19 21. Nb5 Bxb2 22. Qxb2 axb4 23. Nxg4 Qxg4) 21. Nb5 {[%emt 0:03:24]} (21. Ndc2 $17) 21... h4 {[%emt 0:04:23]} (21... Red8 $19 {Strongly threatening ...Ng4.} 22. Qe2 axb4 23. axb4 Rxa1 24. Bxa1 Ng4 25. Nxg4 hxg4 26. Bxg7 (26. Qxe4 $2 Nf4+ 27. gxf4 Qxd1 $19) 26... Kxg7) 22. Qe2 $17 {[%emt 0:00:44] Against Ng4} Rac8 {[%emt 0:08:00] Black is more active.} (22... axb4 23. axb4 Rad8 24. Bc3) 23. Kg1 {[%emt 0:08:06]} Qe6 {[%emt 0:01:49]} ({Weaker is} 23... axb4 24. axb4 hxg3 25. hxg3) ({Better is} 23... hxg3 24. hxg3 Qh3) 24. Bc3 {[%emt 0:01:53]} (24. Bxf6 $142 Bxf6 25. Rab1) 24... Nh7 {[%emt 0:03:42] White must now prevent ...Ng5.} 25. Bxg7 {[%emt 0:02:18]} (25. bxa5 $2 {loses.} Ng5 26. Kh1 Red8 $19) 25... Kxg7 {[%emt 0:00:08]} 26. Rxd3 {[%emt 0:04:32]} exd3 {[%emt 0:00:14]} 27. Qxd3 {[%emt 0:00:02]} Red8 {[%emt 0:04:13] Inhibits Nd6.} 28. Qc3+ {[%emt 0:00:30]} Qf6 {[%emt 0:00:16]} 29. bxa5 {[%emt 0:00:19]} (29. gxh4 $17 {was worth a try.} Qxc3 30. Nxc3) 29... h3 {[%emt 0:01:10]} 30. Rb1 $2 {[%emt 0:02:04] [#]} (30. Kf1) 30... Qxc3 $19 {[%emt 0:00:43]} 31. Nxc3 {[%emt 0:00:01] Pair of Knights!} Ng5 {[%emt 0:00:07]} 32. Kf1 {[%emt 0:05:10][%cal Of1e2]} ({But not} 32. Rxb7 Nf3+ 33. Kf1 Rd2 $19) 32... Rd2 {[%emt 0:00:17]} 33. Rxb7 {[%emt 0:05:08]} (33. Rd1 {might work better.} Rxd1+ 34. Ncxd1) 33... Nf3 {[%emt 0:00:05]} 34. a6 {[%emt 0:00:40]} Nxh2+ {[%emt 0:00:08]} 35. Ke1 {[%emt 0:00:06]} Nf3+ {[%emt 0:00:04]} 36. Kf1 {[%emt 0:00:04]} Rh8 $2 {[%emt 0:00:22] Weighted Error Value: White=0.58/Black=0.28 (precise)} (36... h2 {mates} 37. Nf5+ gxf5 38. Kg2 h1=Q+ 39. Kxh1 Rxf2 40. Rxf7+ Kxf7 41. Nd5 Rh8#) 0-1